[Event "US Open 2021"]
[Site "Crowne Plaza Cherry Hill, United States"]
[Date "2021.08.03"]
[Round "4.7"]
[White "Zeltsan, Joseph"]
[Black "Bruzon Batista, Lazaro"]
[Result "1/2-1/2"]
[TimeControl "40/100;SD/30;+30"]
[BlackTitle "GM"]
[WhiteElo "2404"]
[BlackElo "2725"]

1. e4 {[%clk 01:40:56]} e5 {[%clk 01:38:54]} {[%emt 00:01:59]} 2. Nf3 {[%clk
01:41:21]} Nc6 {[%clk 01:39:19]} 3. Bb5 {[%clk 01:41:49]} Nf6 {[%clk 01:38:32]}
{[%emt 00:00:25]} 4. O-O {[%clk 01:42:10]} {[%emt 00:00:09]} Nxe4 {[%clk
01:38:57]} 5. d4 {[%clk 01:42:37]} Nd6 {[%clk 01:39:21]} {[%emt 00:00:09]} 6.
Bxc6 {[%clk 01:43:04]} {[%emt 00:00:20]} dxc6 {[%clk 01:39:47]} 7. dxe5 {[%clk
01:43:29]} Nf5 {[%clk 01:40:13]} 8. Qxd8+ {[%clk 01:43:54]} Kxd8 {[%clk
01:40:39]} {[%emt 00:00:20]} 9. Nc3 {[%clk 01:43:34]} {[%emt 00:00:44]} Bd7
{[%clk 01:40:53]} {[%emt 00:00:15]} 10. Rd1 {[%clk 01:37:37]} {[%emt 00:06:45]}
Kc8 {[%clk 01:41:05]} 11. b3 {[%clk 01:33:41]} {[%emt 00:04:39]} Be7 {[%clk
01:29:40]} {[%emt 00:12:16]} 12. Bb2 {[%clk 01:30:06]} {[%emt 00:03:17]} h5
{[%clk 01:25:13]} {[%emt 00:05:03]} 13. Ne2 {[%clk 01:24:44]} {[%emt 00:06:06]}
a5 {[%clk 01:23:10]} {[%emt 00:02:13]} 14. a4 {[%clk 01:20:17]} {[%emt
00:05:29]} c5 {[%clk 01:12:55]} {[%emt 00:10:19]} 15. Nf4 {[%clk 01:14:19]}
{[%emt 00:06:21]} Ra6 {[%clk 01:01:11]} {[%emt 00:12:20]} 16. Rd3 {[%clk
00:59:47]} {[%emt 00:15:12]} c4 {[%clk 00:53:28]} {[%emt 00:07:55]} 17. bxc4
{[%clk 00:59:37]} {[%emt 00:00:41]} Rc6 {[%clk 00:53:55]} {[%emt 00:00:24]} 18.
Rxd7 {[%clk 00:17:38]} {[%emt 00:43:02]} Kxd7 {[%clk 00:54:08]} 19. e6+ {[%clk
00:18:07]} Rxe6 {[%clk 00:43:25]} {[%emt 00:10:37]} 20. Nxe6 {[%clk 00:18:34]}
{[%emt 00:00:23]} fxe6 {[%clk 00:42:22]} {[%emt 00:01:44]} 21. Rd1+ {[%clk
00:16:28]} {[%emt 00:02:25]} Kc8 {[%clk 00:32:40]} {[%emt 00:09:58]} 22. Re1
{[%clk 00:16:53]} {[%emt 00:00:16]} Rh6 {[%clk 00:28:26]} {[%emt 00:04:50]} 23.
Bc1 {[%clk 00:11:25]} {[%emt 00:05:34]} Rg6 {[%clk 00:28:52]} {[%emt 00:00:09]}
24. Ne5 {[%clk 00:11:02]} {[%emt 00:00:48]} Rf6 {[%clk 00:29:18]} {[%emt
00:00:22]} 25. Bg5 {[%clk 00:10:45]} {[%emt 00:00:37]} Bb4 {[%clk 00:28:52]}
{[%emt 00:00:47]} 26. Re4 {[%clk 00:10:50]} {[%emt 00:00:32]} Rf8 {[%clk
00:23:22]} {[%emt 00:06:30]} 27. Nd3 {[%clk 00:10:36]} {[%emt 00:00:45]} Bc3
{[%clk 00:20:43]} {[%emt 00:02:31]} 28. c5 {[%clk 00:09:01]} {[%emt 00:02:10]}
Nd4 {[%clk 00:19:16]} {[%emt 00:01:58]} 29. h4 {[%clk 00:08:52]} {[%emt
00:01:19]} Rf5 {[%clk 00:18:26]} {[%emt 00:00:38]} 30. Bd2 {[%clk 00:06:05]}
{[%emt 00:03:13]} Bxd2 {[%clk 00:16:40]} {[%emt 00:02:18]} 31. Rxd4 {[%clk
00:06:33]} {[%emt 00:00:03]} Bc3 {[%clk 00:15:39]} {[%emt 00:01:28]} 32. Rc4
{[%clk 00:05:50]} {[%emt 00:01:23]} Bf6 {[%clk 00:15:58]} {[%emt 00:00:05]} 33.
Kf1 {[%clk 00:05:56]} {[%emt 00:00:41]} c6 {[%clk 00:07:06]} {[%emt 00:09:09]}
34. Ke2 {[%clk 00:06:09]} {[%emt 00:00:09]} Kd7 {[%clk 00:06:22]} {[%emt
00:01:27]} 35. f3 {[%clk 00:05:33]} {[%emt 00:01:00]} Rd5 {[%clk 00:03:30]}
{[%emt 00:03:15]} 36. Re4 {[%clk 00:05:35]} {[%emt 00:00:28]} Rd4 {[%clk
00:03:21]} {[%emt 00:00:44]} 37. Rxd4+ {[%clk 00:05:24]} {[%emt 00:00:36]} Bxd4
{[%emt 00:00:51]} 38. g4 {[%clk 00:05:00]} {[%emt 00:00:08]} e5 {[%clk
00:01:34]} {[%emt 00:02:44]} 39. c3 {[%clk 00:00:44]} {[%emt 00:05:03]} Bxc3
{[%clk 00:01:16]} {[%emt 00:00:32]} 40. Ke3 {[%clk 00:30:50]} {[%emt 00:00:21]}
Ke6 {[%clk 00:30:47]} {[%emt 00:01:06]} 41. Ke4 {[%clk 00:31:16]} g5 {[%clk
00:25:04]} {[%emt 00:06:09]} 42. hxg5 {[%clk 00:26:47]} {[%emt 00:05:28]} h4
{[%clk 00:25:16]} 43. f4 {[%clk 00:27:08]} {[%emt 00:00:16]} exf4 {[%clk
00:23:54]} {[%emt 00:01:35]} 44. Nxf4+ {[%clk 00:24:58]} {[%emt 00:02:42]} Kf7
{[%clk 00:21:52]} {[%emt 00:02:31]} 45. g6+ {[%clk 00:23:24]} {[%emt 00:02:03]}
Kf6 {[%clk 00:21:01]} {[%emt 00:01:18]} 46. g7 {[%clk 00:22:07]} {[%emt
00:01:50]} Kxg7 {[%clk 00:14:49]} {[%emt 00:06:48]} 47. Ne6+ {[%clk 00:22:24]}
{[%emt 00:00:18]} Kf6 {[%clk 00:15:00]} {[%emt 00:00:07]} 48. Nd8 {[%clk
00:22:52]} {[%emt 00:00:15]} h3 {[%clk 00:08:59]} {[%emt 00:06:19]} 49. Kf3
{[%clk 00:22:33]} {[%emt 00:00:52]} Be5 {[%clk 00:05:49]} {[%emt 00:03:39]} 50.
Nxb7 {[%clk 00:20:35]} {[%emt 00:02:24]} Bc7 {[%clk 00:06:16]} {[%emt
00:00:31]} 51. Kf2 {[%clk 00:20:14]} {[%emt 00:00:27]} Kf7 {[%clk 00:04:10]}
{[%emt 00:02:33]} 52. Kg1 {[%clk 00:18:03]} {[%emt 00:02:41]} Ke6 {[%clk
00:03:00]} {[%emt 00:01:55]} 53. Kh1 {[%clk 00:17:50]} {[%emt 00:00:28]} Kf6
{[%clk 00:01:45]} {[%emt 00:01:55]} 54. Kg1 {[%clk 00:17:31]} {[%emt 00:00:42]}
Ke6 {[%clk 00:00:55]} {[%emt 00:01:17]} 55. Kh1 {[%clk 00:17:16]} {[%emt
00:00:53]} Kd7 {[%clk 00:01:16]} {[%emt 00:00:04]} 56. g5 {[%clk 00:17:37]}
{[%emt 00:00:06]} Ke6 {[%clk 00:01:26]} {[%emt 00:00:24]} 57. g6 {[%clk
00:16:36]} {[%emt 00:01:28]} Kf6 {[%clk 00:01:53]} {[%emt 00:00:47]} 58. Nd6
{[%clk 00:17:00]} Kxg6 {[%clk 00:02:20]} 59. Nc8 {[%clk 00:17:25]} Kf6 {[%clk
00:02:40]} 60. Na7 {[%clk 00:17:49]} Ke6 {[%clk 00:03:02]} 61. Nxc6 {[%clk
00:18:05]} {[%emt 00:00:06]} Kd5 {[%clk 00:03:30]} {[%emt 00:00:15]} 62. Nxa5
{[%clk 00:18:30]} Bxa5 {[%clk 00:03:55]} {[%emt 00:00:06]} 63. Kh2 {[%clk
00:18:57]} Kxc5 {[%clk 00:04:22]} {[%emt 00:00:05]} 64. Kxh3 {[%clk 00:19:24]}
Kb4 {[%clk 00:04:49]} {[%emt 00:00:09]} 65. Kg4 {[%clk 00:19:49]} Kxa4 {[%clk
00:05:16]} {[%emt 00:00:04]} 1/2-1/2

[Event "US Open 2021"]
[Site "Crowne Plaza Cherry Hill, United States"]
[Date "2021.08.03"]
[Round "4.8"]
[White "Gledura, Benjamin"]
[Black "Katz, Alexander"]
[Result "1-0"]
[TimeControl "40/100;SD/30;+30"]
[WhiteTitle "GM"]
[BlackTitle "IM"]
[WhiteElo "2721"]
[BlackElo "2510"]

1. Nf3 {[%clk 01:40:54]} d5 {[%clk 01:40:54]} 2. g3 {[%clk 01:41:09]} g6 {[%clk
01:41:01]} 3. Bg2 {[%clk 01:41:09]} {[%emt 00:00:16]} Bg7 {[%clk 01:41:26]} 4.
d4 {[%clk 01:41:25]} {[%emt 00:00:41]} Nf6 {[%clk 01:41:43]} 5. O-O {[%clk
01:41:27]} {[%emt 00:00:27]} c6 {[%clk 01:42:04]} 6. c3 {[%clk 01:40:12]}
{[%emt 00:01:39]} O-O {[%clk 01:41:59]} {[%emt 00:00:37]} 7. a4 {[%clk
01:40:31]} {[%emt 00:01:43]} Nbd7 {[%clk 01:39:04]} {[%emt 00:02:14]} 8. a5
{[%clk 01:31:35]} {[%emt 00:09:14]} Re8 {[%clk 01:38:25]} {[%emt 00:01:08]} 9.
c4 {[%clk 01:29:32]} {[%emt 00:02:40]} Ne4 {[%clk 01:22:27]} {[%emt 00:16:36]}
10. cxd5 {[%clk 01:27:12]} {[%emt 00:02:25]} cxd5 {[%clk 01:22:54]} {[%emt
00:01:33]} 11. Qb3 {[%clk 01:14:49]} {[%emt 00:11:35]} e5 {[%clk 01:21:18]}
{[%emt 00:02:03]} 12. Nc3 {[%clk 00:55:52]} {[%emt 00:19:33]} exd4 {[%clk
01:16:04]} {[%emt 00:06:00]} 13. Nxe4 {[%clk 00:55:40]} {[%emt 00:00:09]} dxe4
{[%clk 01:09:21]} {[%emt 00:07:14]} 14. Ng5 {[%clk 00:55:56]} {[%emt 00:00:22]}
Ne5 {[%clk 01:09:21]} {[%emt 00:00:25]} 15. Nxe4 {[%clk 00:53:58]} {[%emt
00:02:40]} Be6 {[%clk 01:06:01]} {[%emt 00:04:02]} 16. Qxb7 {[%clk 00:47:34]}
{[%emt 00:06:58]} Rb8 {[%clk 00:32:36]} {[%emt 00:33:24]} 17. Qxa7 {[%clk
00:45:29]} {[%emt 00:02:47]} Re7 {[%clk 00:31:45]} {[%emt 00:01:11]} 18. Qc5
{[%clk 00:44:09]} {[%emt 00:02:06]} Rc7 {[%clk 00:32:01]} 19. Bg5 {[%clk
00:38:18]} {[%emt 00:06:56]} Qc8 {[%clk 00:29:42]} {[%emt 00:02:26]} 20. Qd6
{[%clk 00:30:46]} {[%emt 00:07:47]} h6 {[%clk 00:17:12]} {[%emt 00:13:36]} 21.
Bf6 {[%clk 00:29:45]} {[%emt 00:01:20]} Nc4 {[%clk 00:16:34]} {[%emt 00:00:46]}
22. Qxd4 {[%clk 00:30:07]} {[%emt 00:00:36]} Bf8 {[%clk 00:15:58]} {[%emt
00:00:58]} 23. a6 {[%clk 00:28:53]} {[%emt 00:01:28]} Ra8 {[%clk 00:12:07]}
{[%emt 00:04:34]} 24. b3 {[%clk 00:26:38]} {[%emt 00:02:24]} Rxa6 {[%clk
00:11:18]} {[%emt 00:01:25]} 25. Rxa6 {[%clk 00:26:26]} {[%emt 00:00:35]} Qxa6
{[%clk 00:11:47]} {[%emt 00:00:27]} 26. bxc4 {[%clk 00:26:19]} {[%emt
00:00:18]} Rxc4 {[%clk 00:12:13]} {[%emt 00:00:04]} 27. Qe3 {[%clk 00:25:55]}
{[%emt 00:01:23]} Bf5 {[%clk 00:11:36]} {[%emt 00:00:51]} 28. Ba1 {[%clk
00:24:18]} {[%emt 00:02:30]} Ra4 {[%clk 00:10:20]} {[%emt 00:01:07]} 1-0

[Event "US Open 2021"]
[Site "Crowne Plaza Cherry Hill, United States"]
[Date "2021.08.03"]
[Round "4.9"]
[White "Mabe, Chris"]
[Black "Lenderman, Aleksandre"]
[Result "0-1"]
[TimeControl "40/100;SD/30;+30"]
[BlackTitle "GM"]
[WhiteElo "2245"]
[BlackElo "2703"]

1. c4 {[%clk 01:40:55]} b6 {[%clk 01:40:54]} 2. Nc3 {[%clk 01:40:47]} {[%emt
00:00:16]} Bb7 {[%clk 01:41:18]} {[%emt 00:00:13]} 3. e4 {[%clk 01:41:01]}
{[%emt 00:01:10]} e6 {[%clk 01:41:39]} 4. g3 {[%clk 01:38:37]} {[%emt
00:02:00]} f5 {[%clk 01:41:13]} {[%emt 00:01:29]} 5. d3 {[%clk 01:38:31]}
{[%emt 00:00:44]} Nf6 {[%clk 01:40:36]} {[%emt 00:00:37]} 6. Bg2 {[%clk
01:38:11]} {[%emt 00:01:16]} Bc5 {[%clk 01:37:44]} {[%emt 00:02:44]} 7. Nge2
{[%clk 01:35:47]} {[%emt 00:03:58]} fxe4 {[%clk 01:36:18]} {[%emt 00:01:01]} 8.
dxe4 {[%clk 01:34:24]} {[%emt 00:01:43]} O-O {[%clk 01:36:11]} {[%emt
00:00:53]} 9. Nf4 {[%clk 01:19:09]} {[%emt 00:15:30]} e5 {[%clk 01:28:42]}
{[%emt 00:08:26]} 10. Nd3 {[%clk 01:19:16]} {[%emt 00:00:04]} Bd4 {[%clk
01:28:56]} {[%emt 00:00:05]} 11. O-O {[%clk 01:18:43]} {[%emt 00:01:47]} Bxc3
{[%clk 01:27:26]} {[%emt 00:01:17]} 12. bxc3 {[%clk 01:19:06]} {[%emt
00:00:28]} d6 {[%clk 01:06:11]} {[%emt 00:21:58]} 13. Qe2 {[%clk 01:01:54]}
{[%emt 00:17:15]} Nc6 {[%clk 01:04:07]} {[%emt 00:02:53]} 14. Rb1 {[%clk
00:58:29]} {[%emt 00:03:31]} Na5 {[%clk 00:57:04]} {[%emt 00:07:40]} 15. Rd1
{[%clk 00:52:07]} {[%emt 00:06:45]} Qe7 {[%clk 00:55:29]} {[%emt 00:02:02]} 16.
Nb4 {[%clk 00:50:20]} {[%emt 00:02:21]} Qf7 {[%clk 00:54:30]} {[%emt 00:01:26]}
17. c5 {[%clk 00:43:53]} {[%emt 00:06:57]} dxc5 {[%clk 00:54:13]} {[%emt
00:00:49]} 18. Nd5 {[%clk 00:44:14]} {[%emt 00:00:12]} Nxd5 {[%clk 00:51:21]}
{[%emt 00:03:21]} 19. exd5 {[%clk 00:44:36]} {[%emt 00:00:08]} Rad8 {[%clk
00:50:45]} {[%emt 00:01:01]} 20. Rb2 {[%clk 00:40:12]} {[%emt 00:05:01]} Bxd5
{[%clk 00:48:58]} {[%emt 00:02:31]} 21. Rbd2 {[%clk 00:39:11]} {[%emt
00:01:43]} c6 {[%clk 00:47:19]} {[%emt 00:01:39]} 22. Rxd5 {[%clk 00:33:10]}
{[%emt 00:06:40]} cxd5 {[%clk 00:47:04]} {[%emt 00:00:33]} 23. Bg5 {[%clk
00:33:31]} {[%emt 00:00:38]} Rd7 {[%clk 00:46:04]} {[%emt 00:01:03]} 24. Qxe5
{[%clk 00:33:21]} {[%emt 00:00:49]} d4 {[%clk 00:35:34]} {[%emt 00:11:16]} 25.
cxd4 {[%clk 00:31:11]} {[%emt 00:02:32]} Re8 {[%clk 00:34:31]} {[%emt
00:01:27]} 0-1

[Event "US Open 2021"]
[Site "Crowne Plaza Cherry Hill, United States"]
[Date "2021.08.03"]
[Round "4.10"]
[White "Burke, John Michael"]
[Black "Grasso, David"]
[Result "1-0"]
[TimeControl "40/100;SD/30;+30"]
[WhiteTitle "GM"]
[WhiteElo "2640"]
[BlackElo "2252"]

1. e4 {[%clk 01:40:55]} e5 {[%clk 01:40:53]} 2. Nf3 {[%clk 01:41:19]} Nc6
{[%clk 01:41:17]} 3. Bb5 {[%clk 01:41:41]} a6 {[%clk 01:41:40]} 4. Ba4 {[%clk
01:42:05]} Nf6 {[%clk 01:42:02]} {[%emt 00:00:18]} 5. O-O {[%clk 01:42:26]} b5
{[%clk 01:42:24]} 6. Bb3 {[%clk 01:42:51]} Bb7 {[%clk 01:42:48]} 7. Re1 {[%clk
01:41:58]} {[%emt 00:02:08]} Bc5 {[%clk 01:43:04]} 8. c3 {[%clk 01:41:54]} d6
{[%clk 01:43:26]} {[%emt 00:00:31]} 9. d4 {[%clk 01:42:19]} Bb6 {[%clk
01:43:48]} 10. a4 {[%clk 01:41:57]} {[%emt 00:01:45]} h6 {[%clk 01:42:18]}
{[%emt 00:01:26]} 11. Be3 {[%clk 01:41:01]} {[%emt 00:01:29]} Ng4 {[%clk
01:21:04]} {[%emt 00:21:47]} 12. Bd5 {[%clk 01:39:09]} {[%emt 00:01:40]} O-O
{[%clk 01:18:21]} {[%emt 00:03:23]} 13. Na3 {[%clk 01:27:36]} {[%emt 00:12:03]}
Nxe3 {[%clk 01:06:48]} {[%emt 00:12:02]} 14. fxe3 {[%clk 01:28:01]} bxa4 {[%clk
01:01:25]} {[%emt 00:06:01]} 15. Qxa4 {[%clk 01:20:39]} {[%emt 00:07:52]} Na5
{[%clk 01:00:56]} {[%emt 00:01:01]} 16. b4 {[%clk 01:18:05]} {[%emt 00:03:50]}
Bxd5 {[%clk 01:01:20]} 17. bxa5 {[%clk 01:17:15]} {[%emt 00:00:26]} 1-0

[Event "US Open 2021"]
[Site "Crowne Plaza Cherry Hill, United States"]
[Date "2021.08.03"]
[Round "4.11"]
[White "Fishbein, Alexander"]
[Black "Cooklev, Steven T"]
[Result "1-0"]
[TimeControl "40/100;SD/30;+30"]
[WhiteTitle "GM"]
[WhiteElo "2537"]
[BlackElo "2216"]

1. c4 {[%clk 01:39:55]} {[%emt 00:04:48]} Nf6 {[%clk 01:40:51]} 2. Nf3 {[%clk
01:39:56]} e6 {[%clk 01:41:07]} 3. g3 {[%clk 01:40:21]} d5 {[%clk 01:41:27]} 4.
Bg2 {[%clk 01:40:44]} c5 {[%clk 01:39:30]} 5. cxd5 {[%clk 01:40:10]} {[%emt
00:01:06]} exd5 {[%clk 01:39:53]} {[%emt 00:00:05]} 6. d4 {[%clk 01:40:26]}
{[%emt 00:01:12]} Nc6 {[%clk 01:39:30]} 7. O-O {[%clk 01:40:47]} {[%emt
00:00:03]} Be7 {[%clk 01:39:46]} {[%emt 00:00:44]} 8. Nc3 {[%clk 01:38:50]}
{[%emt 00:02:09]} O-O {[%clk 01:40:01]} {[%emt 00:00:04]} 9. dxc5 {[%clk
01:39:11]} {[%emt 00:00:24]} Bxc5 {[%clk 01:40:16]} 10. Na4 {[%clk 01:39:28]}
{[%emt 00:00:31]} Be7 {[%clk 01:40:18]} {[%emt 00:00:18]} 11. Be3 {[%clk
01:39:19]} {[%emt 00:00:28]} Bg4 {[%clk 01:32:36]} {[%emt 00:08:14]} 12. Rc1
{[%clk 01:36:18]} {[%emt 00:03:28]} Re8 {[%clk 01:27:58]} {[%emt 00:05:41]} 13.
Nd4 {[%clk 01:29:27]} {[%emt 00:07:44]} Qd7 {[%clk 01:08:27]} {[%emt 00:19:33]}
14. Nxc6 {[%clk 01:29:30]} bxc6 {[%clk 01:08:52]} {[%emt 00:00:10]} 15. Bd4
{[%clk 01:21:14]} {[%emt 00:08:41]} h5 {[%clk 00:54:51]} {[%emt 00:14:30]} 16.
f3 {[%clk 01:17:30]} {[%emt 00:04:29]} Bf5 {[%clk 00:51:05]} {[%emt 00:04:13]}
17. Rf2 {[%clk 01:14:11]} {[%emt 00:03:37]} Nh7 {[%clk 00:48:44]} {[%emt
00:03:01]} 18. Nc5 {[%clk 01:12:46]} {[%emt 00:01:59]} Qd6 {[%clk 00:47:48]}
{[%emt 00:01:19]} 19. Nb3 {[%clk 01:04:42]} {[%emt 00:08:41]} Qg6 {[%clk
00:44:46]} {[%emt 00:03:55]} 20. Bc5 {[%clk 01:01:07]} {[%emt 00:03:27]} Bf6
{[%clk 00:44:59]} {[%emt 00:00:38]} 21. Nd4 {[%clk 00:59:49]} {[%emt 00:01:35]}
Bxd4 {[%clk 00:44:31]} {[%emt 00:02:05]} 22. Bxd4 {[%clk 00:58:32]} {[%emt
00:00:40]} Ng5 {[%clk 00:44:28]} {[%emt 00:00:51]} 23. b4 {[%clk 00:53:13]}
{[%emt 00:05:27]} a5 {[%clk 00:42:29]} {[%emt 00:02:31]} 24. b5 {[%clk
00:48:50]} {[%emt 00:05:21]} cxb5 {[%clk 00:42:07]} {[%emt 00:00:19]} 25. Bb2
{[%clk 00:48:37]} {[%emt 00:01:12]} Rad8 {[%clk 00:25:48]} {[%emt 00:16:28]} 26.
Qd4 {[%clk 00:46:07]} {[%emt 00:02:52]} Ne6 {[%clk 00:24:56]} {[%emt 00:01:50]}
27. Qb6 {[%clk 00:45:51]} {[%emt 00:00:25]} h4 {[%clk 00:24:42]} {[%emt
00:00:54]} 28. g4 {[%clk 00:39:51]} {[%emt 00:06:37]} Nf4 {[%clk 00:25:07]} 29.
Qxa5 {[%clk 00:38:08]} {[%emt 00:02:35]} Qg5 {[%clk 00:19:19]} {[%emt
00:06:03]} 30. Bf1 {[%clk 00:29:10]} {[%emt 00:09:03]} Bg6 {[%clk 00:17:11]}
{[%emt 00:03:08]} 31. Rd1 {[%clk 00:24:18]} {[%emt 00:04:54]} Ne6 {[%clk
00:09:29]} {[%emt 00:08:14]} 32. Qd2 {[%clk 00:22:14]} {[%emt 00:03:08]} Qxd2
{[%clk 00:04:27]} {[%emt 00:04:52]} 33. Rxd2 {[%clk 00:22:39]} {[%emt
00:00:12]} b4 {[%clk 00:04:55]} {[%emt 00:00:04]} 34. e3 {[%clk 00:20:56]}
{[%emt 00:02:09]} Ra8 {[%clk 00:04:56]} {[%emt 00:00:23]} 35. Rxd5 {[%clk
00:16:33]} {[%emt 00:05:42]} Rxa2 {[%clk 00:05:14]} 36. Bc4 {[%clk 00:16:52]}
Raa8 {[%clk 00:05:06]} {[%emt 00:00:46]} 37. Rb5 {[%clk 00:13:32]} {[%emt
00:03:56]} Rab8 {[%clk 00:03:58]} {[%emt 00:01:05]} 38. Rxb8 {[%clk 00:08:45]}
{[%emt 00:05:12]} Rxb8 {[%clk 00:04:24]} {[%emt 00:00:07]} 39. Bxe6 {[%clk
00:06:31]} {[%emt 00:02:38]} fxe6 {[%clk 00:04:50]} {[%emt 00:00:33]} 40. Rd2
{[%clk 00:36:40]} Rb7 {[%clk 00:32:15]} {[%emt 00:02:56]} 41. e4 {[%clk
00:36:43]} {[%emt 00:00:29]} Be8 {[%clk 00:30:06]} {[%emt 00:02:49]} 42. Kf2
{[%clk 00:36:47]} {[%emt 00:00:16]} Ba4 {[%clk 00:29:25]} {[%emt 00:01:10]} 43.
Rd4 {[%clk 00:35:10]} {[%emt 00:02:38]} Kf7 {[%clk 00:28:34]} {[%emt 00:00:48]}
44. Ke3 {[%clk 00:32:15]} {[%emt 00:03:58]} g5 {[%clk 00:27:15]} {[%emt
00:01:19]} 45. Rc4 {[%clk 00:31:49]} {[%emt 00:01:32]} Be8 {[%clk 00:24:50]}
{[%emt 00:02:31]} 46. Rc5 {[%clk 00:31:02]} {[%emt 00:01:05]} Kg6 {[%clk
00:24:58]} {[%emt 00:00:33]} 47. Ke2 {[%clk 00:21:26]} {[%emt 00:09:55]} Bb5+
{[%clk 00:23:41]} {[%emt 00:02:10]} 48. Kf2 {[%clk 00:21:05]} {[%emt 00:00:27]}
Be8 {[%clk 00:24:01]} {[%emt 00:00:42]} 49. Ke3 {[%clk 00:20:53]} {[%emt
00:00:08]} Rb5 {[%clk 00:21:05]} {[%emt 00:03:34]} 50. Rc8 {[%clk 00:20:52]}
{[%emt 00:00:22]} Bf7 {[%clk 00:21:23]} {[%emt 00:00:12]} 51. f4 {[%clk
00:19:37]} {[%emt 00:02:02]} gxf4+ {[%clk 00:21:27]} {[%emt 00:00:09]} 52. Kxf4
{[%clk 00:19:54]} {[%emt 00:00:39]} Ra5 {[%clk 00:21:11]} {[%emt 00:00:22]} 53.
Rb8 {[%clk 00:19:42]} {[%emt 00:00:44]} Rc5 {[%clk 00:21:03]} {[%emt 00:00:37]}
54. Bd4 {[%clk 00:12:46]} {[%emt 00:07:30]} Rc2 {[%clk 00:17:48]} {[%emt
00:03:45]} 55. Rh8 {[%clk 00:08:27]} {[%emt 00:04:50]} Rxh2 {[%clk 00:16:30]}
{[%emt 00:01:40]} 56. g5 {[%clk 00:08:42]} {[%emt 00:00:21]} e5+ {[%clk
00:16:13]} {[%emt 00:00:43]} 57. Bxe5 {[%clk 00:08:57]} {[%emt 00:00:23]} Ba2
{[%clk 00:15:20]} {[%emt 00:01:15]} 58. Rh6+ {[%clk 00:09:17]} {[%emt
00:00:08]} Kf7 {[%clk 00:15:46]} {[%emt 00:00:42]} 59. g6+ {[%clk 00:08:37]}
{[%emt 00:00:35]} Ke7 {[%clk 00:12:16]} {[%emt 00:04:12]} 60. g7 {[%clk
00:07:52]} {[%emt 00:01:26]} Rg2 {[%clk 00:11:35]} {[%emt 00:00:45]} 61. Rxh4
{[%clk 00:07:36]} {[%emt 00:00:47]} b3 {[%clk 00:09:50]} {[%emt 00:02:22]} 62.
Bb2 {[%clk 00:06:40]} {[%emt 00:02:09]} Kf7 {[%clk 00:09:08]} {[%emt 00:00: